Cogmind - Beta 15 @@@ ROGUE MODE // 2025.07.06 @ 22:18:38 Player: Skysub Result: Destroyed by X4-CS0(R) with Subdweller Laser Performance ------------- Evolutions (0) 0 Regions Visited (2) 400 Robots Destroyed (30) 150 Value Destroyed (779) 779 Prototype IDs (0) 0 Alien Tech Used (0) 0 Bonus (0) 0 TOTAL SCORE: 1329 Bonus ------- None Cogmind --------- Core Integrity 0/250 Matter 190/300 Energy 200/200 System Corruption 0% Temperature Cool (6) Movement Rolling (115) Ox1 Location -10/Subcaves Parts ------- > --- POWER (1) -------- Subdweller Power Source > --- PROPULSION (2) --- Compact Wheel Subdweller Monowheel > --- UTILITY (2) ------ Large Storage Unit Structural Scanner > --- WEAPON (2) ------- Grenade Launcher Mining Laser > --- INVENTORY (15) --- Subdweller Power Source Subdweller Power Source Subdweller Power Source Subdweller Monowheel Subdweller Monowheel Small Storage Unit Machine Analyzer Makeshift Light Armor Plating Scrap Shield Light Assault Rifle Battle Rifle Subdweller Machine Gun Subdweller Machine Gun Peak State ------------ > --- POWER ------------ (None) > --- PROPULSION ------- Compact Wheel Subdweller Monowheel > --- UTILITY ---------- Large Storage Unit Makeshift Light Armor Plating > --- WEAPON ----------- Battle Rifle Subdweller Machine Gun > --- INVENTORY -------- Subdweller Power Source Subdweller Power Source Subdweller Power Source Subdweller Power Source Subdweller Monowheel Subdweller Monowheel Subdweller Monowheel Small Storage Unit Structural Scanner Machine Analyzer Scrap Shield Light Assault Rifle Grenade Launcher Mining Laser [Rating: 14] Favorites ----------- Power Light Ion Engine Engine Light Ion Engine Propulsion Light Treads Treads Light Treads Wheel Compact Wheel Utility Large Storage Unit Device Structural Scanner Storage Large Storage Unit Protection Makeshift Light Armor Plating Weapon Assault Rifle Ballistic Gun Assault Rifle Launcher Grenade Launcher Special Weapon Mining Laser Build | -11 -10 -10 ------- Run | Yrd Mat Sub Slots Evolved . | . . . Power . | . . . Propulsion . | . . . Utility . | . . . Weapon . | . . . Parts Attached 22 | 7 2 13 Power 4 | 1 1 2 Engine 4 | 1 1 2 Core . | . . . Reactor . | . . . Propulsion 6 | 2 . 4 Treads 2 | 2 . . Leg . | . . . Wheel 4 | . . 4 Hover . | . . . Flight . | . . . Utility 4 | 1 1 2 Device 1 | . . 1 Storage 2 | 1 1 . Processor . | . . . Hackware . | . . . Protection 1 | . . 1 Artifact . | . . . Weapon 8 | 3 . 5 Energy Gun . | . . . Energy Cannon . | . . . Ballistic Gun 6 | 3 . 3 Ballistic Cannon . | . . . Launcher 1 | . . 1 Special Weapon 1 | . . 1 Impact Weapon . | . . . Slashing Weapon . | . . . Piercing Weapon . | . . . Special Melee Weapon . | . . . Unidentified Prototypes . | . . . Parts Lost 7 | . 1 6 Power 2 | . 1 1 Propulsion 2 | . . 2 Utility . | . . . Weapon 3 | . . 3 Highest Loss Streak 3 | . 1 3 To Critical Strikes . | . . . Average Backups 9 | 2 6 11 Power 1 | . . 2 Propulsion 1 | . 1 2 Utility 2 | . . 3 Weapon 3 | . 3 3 Tool/Special . | . . . Unused Backups 8 | . . 8 Power 4 | . . 4 Propulsion 1 | . . 1 Utility 2 | . . 2 Weapon 1 | . . 1 Tool/Special . | . . . Average Slot Usage (%) 91 | . 83 95 Engine 11 | . 12 10 Treads 14 | . 28 7 Wheel 12 | . . 20 Device 7 | . . 11 Storage 14 | . 14 14 Protection 1 | . . 2 Ballistic Gun 18 | . 28 13 Launcher 4 | . . 7 Special Weapon 4 | . . 6 Peak Build Rating 14 | 6 7 14 Average Rating 8 | 5 6 10 On Entrance 4 | . 6 7 Naked Turns . | . . . Heaviest Build 33 | 11 28 33 Greatest Support 40 | 40 40 40 Greatest Overweight (x) 1 | . . 1 Average Overweight (x) . | . . . Largest Inventory Capacity 15 | 8 15 15 Average Capacity 13 | 7 10 15 Most Carried 15 | 4 9 15 Average Carried 10 | 2 6 12 Final Capacity 15 | 8 15 15 Final Carried 14 | 4 8 14 Class Distribution -------------------- 86% | Mutant 13% | Scavenger-Mutant Dominant Class ---------------- Mutant | -10/Materials Mutant | -10/Subcaves Resources | -11 -10 -10 ----------- Run | Yrd Mat Sub Matter Collected 751 | 291 285 175 Remotely . | . . . Salvage Created 1013 | 133 545 335 Parts 77 | 7 45 25 Haulers Intercepted . | . . . Recyclers Shooed 2 | . 2 . Parts Field Recycled . | . . . Retrieved Matter . | . . . Parts Self-Destructed 12 | . . 12 Prevented . | . . . Kills | -11 -10 -10 ------- Run | Yrd Mat Sub Combat Hostiles Destroyed 21 | . 12 9 Guns 18 | . 12 6 AOE 3 | . . 3 Classes Destroyed 10 | 2 6 2 Worker 1 | . 1 . Builder 3 | . 3 . Tunneler 2 | 2 . . Recycler 1 | 1 . . Mechanic 1 | . 1 . Watcher 1 | . 1 . Swarmer 3 | . 3 . Grunt 9 | . 9 . Sentry 1 | . . 1 Subdweller 8 | . . 8 Best Kill Streak 7 | 3 7 2 Combat Bots Only 3 | . 3 2 Max Kills in Single Turn 2 | 1 1 2 Gunslinging . | . . . Exploded 2 | . . 2 Melee . | . . . Uniques/NPCs Destroyed . | . . . Combat | -11 -10 -10 -------- Run | Yrd Mat Sub Hostile Shots Fired 98 | . 60 38 Missed 20 | . 15 5 Hits 78 | . 45 33 Projectile 78 | . 45 33 Critical Strikes 5 | . 3 2 Damage Taken 1184 | . 492 692 Core 267 | . 61 206 Absorbed by Shields . | . . . Core Remaining (%) 100 | 100 . . Volleys Fired 134 | 8 68 58 Largest 2 | 2 2 2 Hottest 100 | 40 40 100 Shots Fired 228 | 16 136 76 Gun 190 | 16 136 38 Cannon . | . . . Launcher 6 | . . 6 Special 32 | . . 32 Kinetic 190 | 16 136 38 Thermal 32 | . . 32 Explosive 6 | . . 6 Electromagnetic . | . . . Robot Hit Streak 14 | 7 9 14 Robot Miss Streak 4 | 1 4 1 Penetration Max . | . . . Secondary Targets 1 | . 1 . Max Gunslinging Chain 1 | . 1 . Shots Hit Robots 126 | 11 80 35 Core Hits 60 | 4 34 22 Critical Kills . | . . . Critical Parts Destroyed . | . . . Critical Strikes 1 | . . 1 Destroy 1 | . . 1 Melee Attacks . | . . . Impact . | . . . Slashing . | . . . Piercing . | . . . Sneak Attacks . | . . . Combat Hostiles . | . . . Follow-up Attacks . | . . . Damage Inflicted 1736 | 117 899 720 Guns 1372 | 117 890 365 Cannons . | . . . Explosions 355 | . . 355 Melee . | . . . Ramming 9 | . 9 . Kinetic 1372 | 117 890 365 Thermal . | . . . Explosive 355 | . . 355 Electromagnetic . | . . . Impact . | . . . Slashing . | . . . Piercing . | . . . Highest Corruption . | . . . Average Corruption . | . . . Corruption Purged . | . . . Corruption Blocked . | . . . Overload Shots . | . . . Overflow Damage . | . . . Projectiles . | . . . Explosions . | . . . Melee . | . . . Knockbacks . | . . . Impact . | . . . Kinetic . | . . . Secondary . | . . . Self-Inflicted Damage 39 | . . 39 Shots 1 | . . 1 Rammed 1 | . 1 . Targets Rammed 1 | . 1 . Kicked . | . . . Crushed . | . . . Highest Temperature 30 | . 30 . Average Temperature 9 | . 9 . Received Heat Transfer 459 | . 273 186 Siege Activations . | . . . Martial Activations . | . . . Shielding Activations . | . . . Robots Disrupted . | . . . Combat Hostiles . | . . . Robots Corrupted . | . . . Combat Hostiles . | . . . Parts Fried . | . . . Impact Corruptions . | . . . Robots Melted . | . . . Combat Hostiles . | . . . Parts Melted . | . . . Heat Transferred . | . . . Parts Sabotaged . | . . . Parts Stolen . | . . . Parts Stripped . | . . . Power Chain Reactions . | . . . Alert | -11 -10 -10 ------- Run | Yrd Mat Sub Maximum Alert Level . | . . . Low Security (%) 100 | 100 100 . Level 1 . | . . . Level 2 . | . . . Level 3 . | . . . Level 4 . | . . . Level 5 . | . . . High Security . | . . . Max Security . | . . . Peak Influence 131 | 10 131 . Initial . | . . . Average 61 | . 70 . Influence Increases 432 | 15 397 20 Destroy 0b10 Robot/C 260 | . 240 20 Destroy 0b10 Robot/NC 45 | 15 30 . Destroy Leader 52 | . 52 . Select Force Hacks 60 | . 60 . Lose Combat Pursuer 15 | . 15 . Influence Decreases 432 | 15 306 111 Entered New Map 44 | . . 44 Time Decay 378 | 15 296 67 Lost Part 10 | . 10 . Squads Dispatched 3 | . 3 . Investigation 2 | . 2 . Extermination . | . . . Reinforcement 1 | . 1 . Assault . | . . . Garrison . | . . . Intercept . | . . . Searches Triggered . | . . . Construction Impeded . | . . . Haulers Reinforced . | . . . Active Scanning Responses . | . . . Cargo Convoy Interrupts . | . . . Stealth | -11 -10 -10 --------- Run | Yrd Mat Sub Distress Signals . | . . . Communications Jammed . | . . . Distress Signals . | . . . Times Spotted 36 | . 26 10 Peak Tracking Total 5 | . 5 2 Tactical Retreats 1 | . 1 . Traps | -11 -10 -10 ------- Run | Yrd Mat Sub Traps Triggered . | . . . Indirectly . | . . . Trap Hack Attempts . | . . . Triggered . | . . . Disarmed . | . . . Reprogrammed . | . . . Reused . | . . . Traps Extracted . | . . . Installed . | . . . Triggered . | . . . Machines | -11 -10 -10 ---------- Run | Yrd Mat Sub Machines Disabled 1 | . 1 . Max in Single Turn 1 | . 1 . Machines Repaired . | . . . Machines Dismantled . | . . . Machines Sabotaged . | . . . Overloaded Fab Kills . | . . . Hacking | -11 -10 -10 --------- Run | Yrd Mat Sub Machines Accessed 4 | . 3 1 Terminals 1 | . 1 . Fabricators . | . . . Repair Stations . | . . . Recycling Units 2 | . 2 . Scanalyzers . | . . . Garrison Access . | . . . Total Hacks 9 | . 8 1 Successful 5 | . 4 1 Failed 4 | . 4 . Catastrophic 1 | . 1 . Database Lockouts . | . . . Manual 6 | . 6 . Terminals 1 | . 1 . Fabricators . | . . . Repair Stations . | . . . Recycling Units 7 | . 7 . Scanalyzers . | . . . Garrison Access . | . . . Terminal Hacks 1 | . . 1 Open Door 1 | . . 1 Fabricator Hacks . | . . . Repair Station Hacks . | . . . Recycling Unit Hacks 2 | . 2 . Report Inventory 2 | . 2 . Scanalyzer . | . . . Garrison Access Hacks . | . . . Unauthorized Hacks 2 | . 2 . Terminals . | . . . Fabricators . | . . . Repair Stations . | . . . Recycling Units 2 | . 2 . Tunnel 2 | . 2 . Scanalyzers . | . . . Garrison Access . | . . . Data Cores Recovered . | . . . Used . | . . . Hacking Detections 2 | . 2 . Full Trace Events . | . . . Feedback Events . | . . . Feedback Blocked . | . . . Robot Schematics Acquired . | . . . Robots Built . | . . . Authchips . | . . . Time . | . . . Total Robot Build Rating . | . . . Part Schematics Acquired . | . . . Parts Built . | . . . Authchips . | . . . Time . | . . . Total Part Build Rating . | . . . Parts Repaired . | . . . Time . | . . . Parts Recycled . | . . . Recycled Matter . | . . . Retrieved Matter . | . . . Retrieved Components . | . . . Parts Scanalyzed . | . . . Part Schematics Acquired . | . . . Parts Damaged . | . . . Bothacking | -11 -10 -10 ------------ Run | Yrd Mat Sub Used RIF Installer . | . . . Robots Hacked . | . . . Non-combat . | . . . Combat . | . . . Robot Hacks Applied . | . . . Relay Couplers Released . | . . . Fabnet Peak Effective % . | . . . Robots Rewired . | . . . Allies Hacked . | . . . Hacks Repelled . | . . . Allies | -11 -10 -10 -------- Run | Yrd Mat Sub Total Allies . | . . . Largest Group . | . . . Highest-Rated Group . | . . . Highest-Rated Ally . | . . . Total Orders . | . . . Ally Attacks . | . . . Total Damage . | . . . Kills . | . . . Allies Corrupted . | . . . Allies Melted . | . . . Intel | -11 -10 -10 ------- Run | Yrd Mat Sub Active Infowar (turns) 1222 | . . 1222 Structural 1222 | . . 1222 Robot Analysis Total . | . . . Derelict Logs Recovered . | . . . Drone Launches . | . . . Drone Recoveries . | . . . Exploration | -11 -10 -10 ------------- Run | Yrd Mat Sub Turns Passed 2397 | 117 808 1472 Spaces Moved 1403 | 54 342 1007 Core 4 | 4 . . Treads 563 | 50 342 171 Legs . | . . . Wheels 836 | . . 836 Hover . | . . . Flight . | . . . Fastest Speed 50 | 50 160 105 Average Speed 127 | 151 160 115 Slowest Speed 240 | 160 160 240 Overloaded Moves . | . . . Propulsion Burnouts . | . . . Robots Hopped . | . . . Potential Cave-ins . | . . . Cave-ins Triggered . | . . . Exploration Rate (%) 36 | 4 47 59 Regions Visited 2 Branch Regions 1 Pre-discovered Areas 3 | . 2 1 Known Exits Taken . | . . . Unknown Exits Taken 2 | 1 1 . Scrap Searched 4 | . . 4 Spaces Dug . | . . . Terrain Destroyed 31 | . . 31 Melee . | . . . Projectile . | . . . AOE 31 | . . 31 Terrain Rammed . | . . . Walls Destroyed . | . . . Machines Disabled . | . . . Actions | -11 -10 -10 --------- Run | Yrd Mat Sub Total 1726 | 71 480 1175 Wait 140 | . 63 77 Move 1401 | 53 341 1007 Hop . | . . . Pick Up 20 | 3 4 13 Fast Attach 9 | 6 1 2 Attach 7 | . 1 6 Detach 2 | . 1 1 Swap 9 | 1 . 8 Drop 3 | . . 3 Fire 134 | 8 68 58 Melee . | . . . Ram . | . . . Kick . | . . . Crush 1 | . 1 . Escape Stasis . | . . . Rewire . | . . . Trap . | . . . Miscellaneous . | . . . Route ------- -11/Scrapyard -10/Materials (discovered 3 exits: [*Mat] / [*Min] / *Sub) -10/Subcaves (discovered 1 exit: [*Scr]) History --------- Turn | Location | Event 7 | -11/Scrapyard | Discovered new exit (range 14) 118 | -11/Scrapyard | Entered Materials 309 | -10/Materials | Build established: Mutant 355 | -10/Materials | Discovered new exit (range 16) 488 | -10/Materials | Discovered new exit (range 16) 914 | -10/Materials | Discovered new exit (range 7) 926 | -10/Materials | Entered Subcaves 927 | -10/Subcaves | Approached by a straggling Scientist 1127 | -10/Subcaves | Disturbed a concealed Subdweller 1284 | -10/Subcaves | Core integrity fell below 50% 1399 | -10/Subcaves | Lost 3 parts (1p1n1w) 1482 | -10/Subcaves | Scientist uncovered a shortcut to Scraptown 1514 | -10/Subcaves | Disturbed a concealed Subdweller 1815 | -10/Subcaves | Learned location of Zion (-7) 1815 | -10/Subcaves | Met a Zionite searching for "candidates" 1828 | -10/Subcaves | A swath of the cavern ceiling suddenly collapsed 2079 | -10/Subcaves | Build established: Scavenger-Mutant 2081 | -10/Subcaves | Shifting Twisted Machinery released Flamer 2148 | -10/Subcaves | Shifting Twisted Machinery released Sub. Power Source 2246 | -10/Subcaves | Shifting Twisted Machinery released Barrage Gun 2246 | -10/Subcaves | Shifting Twisted Machinery released Piercing Trap 2391 | -10/Subcaves | Core integrity fell below 20% 2398 | -10/Subcaves | Destroyed by X4-CS0(R) with Subdweller Laser Last Messages --------------- World map updated: -7/Zion. A swath of the cavern ceiling suddenly collapses. 01829_ Sub. Monowheel shoots sparks and powers down. 01919_ AT-3GP(u) tweaks Twisted Machinery. 01955_ ER-N3G(u) builds Twisted Machinery. 02000_ Sub. Power Source shoots sparks and powers down. Flamer falls loose from the Twisted Machinery. 02094_ Sub. Monowheel shoots sparks and powers down. Sub. Power Source falls loose from the Twisted Machinery. 02152_ Dropped Broken Sub. Power Source. 02153_ Acquired Sub. Power Source. Barrage Gun falls loose from the Twisted Machinery. Piercing Trap falls loose from the Twisted Machinery. 02285_ Subatomizers dissect the Sub. Optics. 02310_ Sub. Monowheel shoots sparks and powers down. 02341_ Connecting with UFD SUBCON Station... 02341_ Current location identified: Subcaves >>Open Door Sealed Heavy Doors opened. 02395_ BY-1QR(R) destroyed. Map ----- +----------------------------------------------------+ | ???????????????????????????????????????????####### | | ???????????????????????????????????????????####### | | ????????????????????????????????????????????????## | | ?????????????????????????????????????????????????? | | ?????????????????????????????????????????????????? | | ?????????????????????????????????????????????????? | | ?????????????????????????????????????????????????? | | ???????????????????????????????????????##########? | | ???????????????????????????????????????##########? | | ???????????????????????????????????????##""""""##? | | ???????????????????????????????????????##"X""""##? | | ???????????????????????????????????????##" ##? | | ???????????????????????????????????????##" ##? | | ?????????????????????? #?????????????##"""" "##? | | ?????????????????????? ######??????????###### ###? | | ??????????????????????## #########?????####"" "##? | | ???????????????????? ### ########????#### X### | | ???????????????????##### ### ###????### #### | | ???????????????????### # ##???### #### ## | | ???????????????????## ##???#### ## ## | | ???????????????????## ##???## ### ## | | ??????????????????? ## ## ####### ## | | ????????????####??? ###### ####### ##### | | ?????????? ???? #### #### ### | | ?????????? # ## ### ### | | ?????????? R @ ### ### | | ?????????? !%= # ### | | ?????????? = # # ###### ## | | ??????????##### # ####### #### ### ####### | | ??????????#################### ## ####### | | ?????????????????????????###### ###??? | | ?????????????????????????????## ##### | | ?????????????????????????????## ## ##### | | ?????????????????????????????#### ## # | | ?????????????????????????????##### | | ???????????????????????????????#### | | ????????????????????????????????###### | | ?????????????????????????????????###### | | ????????????????????????????????????#### | | ?????????????????????????????????????#### ## ## | | ??????????????????????????????????????#### # | | ???????????????????????????????????????#### # ## | | ????????????????????????????????????????### ""# ## | | ????????????????????????????????????????## # " # | | ###???????????????????????????????######## " ## | | ####?????????????????????????????######### ##" ## | | ###????????????????????????????#### # ## ###" # | | ###???????????????????????????###"" ###" | | "#####?????????????????????????##""# ###" | | " ####?????????????????????????##"" ## ## # | +----------------------------------------------------+ Best States ------------- Heat Dissipation 25 Energy Generation 15 Energy Capacity 250 Matter Stores 300 Matter Capacity 300 Sight Range 16 Terrain Scan Density 10 Armor Coverage 100 Evasion (%) 40 Recoil Reduction 2 Item Schematics ----------------- None Robot Schematics ------------------ None Fabricated ------------ Nothing Repaired ---------- Nothing Alien Tech Used ----------------- None Achievements -------------- None Challenges ------------ None Game ------ Seed MakeshiftMinesnifferWell Manual? 0 Play Time 00:14:59 Cumulative 140.3 hours Start 2025.07.06 @ 22:07:09 End 2025.07.06 @ 22:18:38 Sessions 1 Manual Loads 0 Difficulty Rogue Special Mode None Game No. 149 Rogue 149 Adventurer 0 Explorer 0 Win Type - Total 3 Types 1/0/0/1/0/0/0/0/0/1 Lore% 63 Gallery% 59 Achievement% 52 Wizard Run 0 Options --------- Layout 1 ASCII 0 Keyboard 1 Movement Numpad Keybinds 0 Fullscreen 1 Font 32/SmallcapsGlow Map View 77x35 Zoom Use 0% Tactical HUD 1 Map Filters NONE Filters NONE Steam 1 RUN: 84c49238-1808-4b78-9839-0661dfb60446